fUSD/lending_fUSD_20240628
["ID","MTS","AMOUNT","RATE_DAILY","PERIOD"]
[330570192,1719581455909,-151.0,0.00021917,2]
[330570193,1719581456224,-500.0,0.00021917,3]
[330570194,1719581456281,-152.103664,0.00021917,2]
[330570195,1719581456293,-151.0,0.00021917,2]
[330570196,1719581456303,-151.0,0.00021917,2]
[330570197,1719581456312,-151.0,0.00021917,2]
[330570198,1719581456322,-151.0,0.00021917,2]
[330570199,1719581456331,-151.0,0.00021917,2]
[330570200,1719581456341,-152.786885,0.00021917,2]
[330570201,1719581456351,-500.0,0.00021917,3]
[330570202,1719581456360,-500.0,0.00021917,3]
[330570203,1719581456370,-500.0,0.00021917,3]
[330570204,1719581456380,-1790.37,0.00021917,3]
[330570205,1719581456390,-500.0,0.00021917,3]
[330570206,1719581456402,-1186.46,0.00021917,3]
[330570207,1719581456412,-500.0,0.00021917,3]
[330570208,1719581456427,-2000.64,0.00021917,3]
[330570209,1719581456438,-500.0,0.00021917,3]
[330570210,1719581456447,-719.3,0.00021917,3]
[330570211,1719581456457,-3251.06,0.00021917,3]
[330570212,1719581456466,-151.0,0.00021917,2]
[330570213,1719581456476,-988.84,0.00021917,3]
[330570214,1719581456486,-151.0,0.00021917,2]
[330570215,1719581456498,-384.02486186,0.00021917,3]
[330570216,1719581456508,-151.0,0.00021917,2]
[330570217,1719581456518,-638.89,0.00021917,3]
[330570218,1719581456527,-151.0,0.00021917,2]
[330570219,1719581456540,-500.0,0.00021917,3]
[330570220,1719581456550,-151.0,0.00021917,2]
[330570221,1719581456560,-500.0,0.00021917,3]
[330570222,1719581456570,-151.0,0.00021917,2]
[330570223,1719581456580,-709.49,0.00021917,3]
[330570224,1719581456590,-151.0,0.00021917,2]
[330570225,1719581456600,-151.0,0.00021917,2]
[330570226,1719581456610,-500.0,0.00021917,3]
[330570227,1719581456620,-5851.89,0.00021917,3]
[330570228,1719581456630,-6549.41,0.00021917,3]
[330570229,1719581456640,-151.0,0.00021917,2]
[330570230,1719581456650,-151.0,0.00021917,2]
[330570231,1719581456660,-151.0,0.00021917,2]
[330570232,1719581456670,-151.0,0.00021917,2]
[330570233,1719581456680,-1243.35,0.00021917,3]
[330570234,1719581456690,-151.0,0.00021917,2]
[330570235,1719581456700,-151.0,0.00021917,2]
[330570236,1719581456709,-151.0,0.00021917,2]
[330570237,1719581456719,-151.0,0.00021917,2]
[330570238,1719581456729,-151.0,0.00021917,2]
[330570239,1719581456738,-1121.54,0.00021917,3]
[330570240,1719581456750,-151.0,0.00021917,2]
[330570241,1719581456760,-151.0,0.00021917,2]
[330570242,1719581456770,-3127.02,0.00021917,3]
[330570243,1719581456779,-279.86966,0.00021917,2]
[330570244,1719581456792,-151.0,0.00021917,2]
[330570245,1719581456801,-2930.95,0.00021917,3]
[330570246,1719581456811,-151.0,0.00021917,2]
[330570247,1719581456820,-500.0,0.00021917,3]
[330570248,1719581456830,-500.0,0.00021917,3]
[330570249,1719581456840,-500.0,0.00021917,3]
[330570250,1719581456850,-851.08,0.00021917,3]
[330570251,1719581456861,-776.56,0.00021917,3]
[330570252,1719581456870,-151.0,0.00021917,2]
[330570253,1719581456880,-151.0,0.00021917,2]
[330570254,1719581456891,-151.0,0.00021917,2]
[330570255,1719581456900,-500.0,0.00021917,3]
[330570256,1719581456910,-1849.31,0.00021917,3]
[330570257,1719581456920,-199.21636,0.00021917,2]
[330570258,1719581456930,-167.939502,0.00021917,2]
[330570259,1719581456939,-167.939502,0.00021917,2]
[330570260,1719581456949,-500.0,0.00021917,3]
[330570261,1719581456959,-2636.86,0.00021917,3]
[330570262,1719581456968,-167.939502,0.00021917,2]
[330570263,1719581456978,-167.939502,0.00021917,2]
[330570264,1719581456987,-167.939502,0.00021917,2]
[330570265,1719581456997,-633.9078459,0.00021917,3]
[330570266,1719581457006,-167.939502,0.00021917,2]
[330570267,1719581457016,-167.939502,0.00021917,2]
[330570268,1719581457025,-167.939502,0.00021917,2]
[330570269,1719581457035,-500.0,0.00021917,3]
[330570270,1719581457047,-722.53,0.00021917,3]
[330570271,1719581457056,-1462.6,0.00021917,3]
[330570272,1719581457066,-151.0,0.00021917,2]
[330570273,1719581457077,-167.939502,0.00021917,2]
[330570274,1719581457088,-167.939502,0.00021917,2]
[330570275,1719581457099,-500.0,0.00021917,3]
[330570276,1719581457108,-151.0,0.00021917,2]
[330570277,1719581457118,-500.0,0.00021917,3]
[330570278,1719581457128,-167.939502,0.00021917,2]
[330570279,1719581457137,-151.0,0.00021917,2]
[330570280,1719581457147,-1920.81,0.00021917,3]
[330570281,1719581457157,-167.939502,0.00021917,2]
[330570282,1719581457166,-151.0,0.00021917,2]
[330570283,1719581457176,-210.14640411,0.00021917,3]
[330570284,1719581457185,-1534.46,0.00021917,3]
[330570285,1719581457195,-167.939502,0.00021917,2]
[330570286,1719581457206,-151.0,0.00021917,2]
[330570287,1719581457215,-1966.76,0.00021917,3]
[330570288,1719581457224,-151.0,0.00021917,2]
[330570289,1719581457234,-167.939502,0.00021917,2]
[330570290,1719581457243,-151.0,0.00021917,2]
[330570291,1719581457253,-167.939502,0.00021917,2]
[330570292,1719581457262,-1485.53,0.00021917,3]
[330570293,1719581457272,-3455.8,0.00021917,3]
[330570294,1719581457283,-151.0,0.00021917,2]
[330570295,1719581457293,-1645.58,0.00021917,3]
[330570296,1719581457302,-167.939506,0.00021917,2]
[330570297,1719581457311,-500.0,0.00021917,3]
[330570298,1719581457321,-2653.03,0.00021917,3]
[330570299,1719581457331,-1022.75,0.00021917,3]
[330570300,1719581457341,-500.0,0.00021917,3]
[330570301,1719581457351,-151.0,0.00021917,2]
[330570302,1719581457360,-324.92230091,0.00021917,3]
[330570303,1719581457370,-1000.0,0.00021917,2]
[330570304,1719581457380,-500.0,0.00021917,3]
[330570305,1719581457390,-151.0,0.00021917,2]
[330570306,1719581457403,-162.397928,0.00021917,2]
[330570307,1719581457416,-1315.88,0.00021917,3]
[330570308,1719581457426,-500.0,0.00021917,3]
[330570309,1719581457435,-500.0,0.00021917,3]
[330570310,1719581457447,-1627.89,0.00021917,3]
[330570311,1719581457458,-346.30217935,0.00021917,3]
[330570312,1719581457468,-4218.02,0.00021917,3]
[330570313,1719581457480,-780.56,0.00021917,3]
[330570314,1719581457491,-500.0,0.00021917,3]
[330570315,1719581457501,-500.0,0.00021917,3]
[330570316,1719581457511,-500.0,0.00021917,3]
[330570317,1719581457521,-369.65343677,0.00021917,3]
[330570318,1719581457531,-151.0,0.00021917,2]
[330570319,1719581457542,-1377.58,0.00021917,3]
[330570320,1719581457551,-500.0,0.00021917,3]
[330570321,1719581457560,-151.0,0.00021917,2]
[330570322,1719581457572,-151.0,0.00021917,2]
[330570323,1719581457582,-151.0,0.00021917,2]
[330570324,1719581457592,-500.0,0.00021917,3]
[330570325,1719581457601,-500.0,0.00021917,3]
[330570326,1719581457611,-674.62,0.00021917,3]
[330570327,1719581457620,-2978.97,0.00021917,3]
[330570328,1719581457630,-514.37,0.00021917,3]
[330570329,1719581457640,-7525.21,0.00021917,3]
[330570330,1719581457649,-500.0,0.00021917,3]
[330570331,1719581457659,-954.41,0.00021917,3]
[330570332,1719581457669,-1511.98,0.00021917,3]
[330570333,1719581457678,-763.25,0.00021917,3]
[330570334,1719581457688,-500.0,0.00021917,3]
[330570335,1719581457697,-810.94,0.00021917,3]
[330570336,1719581457706,-815.5,0.00021917,3]
[330570337,1719581457716,-500.0,0.00021917,3]
[330570338,1719581457725,-500.0,0.00021917,3]
[330570339,1719581457735,-1485.98,0.00021917,3]
[330570340,1719581457743,-500.0,0.00021917,3]
[330570341,1719581457753,-500.0,0.00021917,3]
[330570342,1719581457763,-500.0,0.00021917,3]
[330570343,1719581457772,-500.0,0.00021917,3]
[330570344,1719581457781,-500.0,0.00021917,3]
[330570345,1719581457792,-1836.96,0.00021917,3]
[330570346,1719581457801,-2470.1,0.00021917,3]
[330570347,1719581457811,-500.0,0.00021917,3]
[330570348,1719581457821,-1386.57,0.00021917,3]
[330570349,1719581457830,-572.01,0.00021917,3]
[330570350,1719581457840,-517.73,0.00021917,3]
[330570351,1719581457849,-856.65,0.00021917,3]
[330570352,1719581457858,-1584.05,0.00021917,3]
[330570353,1719581457868,-1512.1,0.00021917,3]
[330570354,1719581457877,-758.53,0.00021917,3]
[330570355,1719581457887,-1076.21,0.00021917,3]
[330570356,1719581457897,-405.47065367,0.00021917,3]
[330570357,1719581457906,-1219.7,0.00021917,3]
[330570358,1719581457916,-898.71,0.00021917,3]
[330570359,1719581457925,-692.9,0.00021917,3]
[330570360,1719581457934,-500.0,0.00021917,3]
[330570361,1719581457944,-4004.99,0.00021917,3]
[330570362,1719581457953,-1336.68,0.00021917,3]
[330570363,1719581457962,-6874.99,0.00021917,3]
[330570364,1719581457972,-897.44,0.00021917,3]
[330570365,1719581457981,-500.0,0.00021917,3]
[330570366,1719581457990,-798.07,0.00021917,3]
[330570367,1719581457999,-1469.29,0.00021917,3]
[330570368,1719581458009,-500.0,0.00021917,3]
[330570369,1719581458019,-500.0,0.00021917,3]
[330570370,1719581458028,-500.0,0.00021917,3]
[330570371,1719581458038,-154.06693327,0.00021917,3]
[330570372,1719581458047,-500.0,0.00021917,3]
[330570373,1719581458056,-1201.59,0.00021917,3]
[330570374,1719581458065,-660.68,0.00021917,3]
[330570375,1719581458075,-643.136566,0.00021917,2]
[330570376,1719581458085,-643.136557,0.00021917,2]
[330570377,1719581458094,-500.0,0.00021917,3]
[330570378,1719581458104,-2287.08,0.00021917,3]
[330570379,1719581458113,-500.0,0.00021917,3]
[330570380,1719581458123,-1323.12,0.00021917,3]
[330570381,1719581458132,-511.43,0.00021917,3]
[330570382,1719581458141,-919.51,0.00021917,3]
[330570383,1719581458151,-151.0,0.00021917,2]
[330570384,1719581458160,-175.879831,0.00021917,2]
[330570385,1719581458170,-1699.658115,0.00021917,2]
[330570386,1719581458179,-1699.658115,0.00021917,2]
[330570387,1719581458188,-1699.658115,0.00021917,2]
[330570388,1719581458197,-1100.39,0.00021917,3]
[330570389,1719581458206,-578.27,0.00021917,3]
[330570390,1719581458215,-1699.658115,0.00021917,2]
[330570391,1719581458224,-151.0,0.00021917,2]
[330570392,1719581458234,-1699.658115,0.00021917,2]
[330570393,1719581458243,-229.127274,0.00021917,2]
[330570394,1719581458252,-1443.4,0.00021917,3]
[330570395,1719581458261,-1699.658115,0.00021917,2]
[330570396,1719581458270,-1699.658115,0.00021917,2]
[330570397,1719581458279,-1699.658115,0.00021917,2]
[330570398,1719581458290,-151.0,0.00021917,2]
[330570399,1719581458299,-151.0,0.00021917,2]
[330570400,1719581458308,-151.0,0.00021917,2]
[330570401,1719581458317,-6645.26,0.00021917,3]
[330570402,1719581458326,-1699.658115,0.00021917,2]
[330570403,1719581458336,-837.56,0.00021917,3]
[330570404,1719581458345,-151.0,0.00021917,2]
[330570405,1719581458354,-1699.658115,0.00021917,2]
[330570406,1719581458364,-301.90728137,0.00021917,3]
[330570407,1719581458373,-151.0,0.00021917,2]
[330570408,1719581458382,-1699.658115,0.00021917,2]
[330570409,1719581458392,-151.0,0.00021917,2]
[330570410,1719581458406,-1699.658115,0.00021917,2]
[330570411,1719581458415,-151.0,0.00021917,2]
[330570412,1719581458425,-151.0,0.00021917,2]
[330570413,1719581458433,-1699.658115,0.00021917,2]
[330570414,1719581458443,-151.0,0.00021917,2]
[330570415,1719581458453,-1699.658115,0.00021917,2]
[330570416,1719581458462,-151.0,0.00021917,2]
[330570417,1719581458471,-1699.658115,0.00021917,2]
[330570418,1719581458480,-151.0,0.00021917,2]
[330570419,1719581458492,-2111.56,0.00021917,3]
[330570420,1719581458501,-1699.658111,0.00021917,2]
[330570421,1719581458511,-1244.64,0.00021917,3]
[330570422,1719581458520,-645.54,0.00021917,3]
[330570423,1719581458529,-165.301461,0.00021917,2]
[330570424,1719581458540,-1835.87,0.00021917,3]
[330570425,1719581458549,-1450.85,0.00021917,3]
[330570426,1719581458558,-500.0,0.00021917,3]
[330570427,1719581458568,-500.0,0.00021917,3]
[330570428,1719581458579,-165.301461,0.00021917,2]
[330570429,1719581458588,-165.301461,0.00021917,2]
[330570430,1719581458598,-2439.85,0.00021917,3]
[330570431,1719581458608,-165.301461,0.00021917,2]
[330570432,1719581458618,-165.301461,0.00021917,2]
[330570433,1719581458627,-165.301461,0.00021917,2]
[330570434,1719581458636,-702.47,0.00021917,3]
[330570435,1719581458645,-1096.06,0.00021917,3]
[330570436,1719581458659,-165.301461,0.00021917,2]
[330570437,1719581458668,-598.44,0.00021917,3]
[330570438,1719581458678,-165.301461,0.00021917,2]
[330570439,1719581458687,-2014.08,0.00021917,3]
[330570440,1719581458696,-165.301461,0.00021917,2]
[330570441,1719581458706,-165.301461,0.00021917,2]
[330570442,1719581458715,-165.301461,0.00021917,2]
[330570443,1719581458724,-165.301461,0.00021917,2]
[330570444,1719581458733,-1770.49,0.00021917,3]
[330570445,1719581458742,-500.0,0.00021917,3]
[330570446,1719581458752,-500.0,0.00021917,3]
[330570447,1719581458761,-165.301461,0.00021917,2]
[330570448,1719581458770,-2164.99,0.00021917,3]
[330570449,1719581458779,-5010.18,0.00021917,3]
[330570450,1719581458788,-165.301461,0.00021917,2]
[330570451,1719581458797,-165.301461,0.00021917,2]
[330570452,1719581458806,-182.78,0.00021917,3]
[330570453,1719581458815,-165.30146,0.00021917,2]
[330570454,1719581458825,-500.0,0.00021917,3]
[330570455,1719581458834,-1514.61,0.00021917,3]
[330570456,1719581458842,-500.0,0.00021917,3]
[330570457,1719581458851,-1634.2,0.00021917,3]
[330570458,1719581458860,-500.0,0.00021917,3]
[330570459,1719581458870,-981.91,0.00021917,3]
[330570460,1719581458879,-1972.11,0.00021917,3]
[330570461,1719581458888,-1289.86,0.00021917,3]
[330570462,1719581458897,-500.0,0.00021917,3]
[330570463,1719581458907,-1872.23,0.00021917,3]
[330570464,1719581458916,-500.0,0.00021917,3]
[330570465,1719581458925,-500.0,0.00021917,3]
[330570466,1719581458934,-957.61,0.00021917,3]
[330570467,1719581458943,-689.93,0.00021917,3]
[330570468,1719581458952,-500.0,0.00021917,3]
[330570469,1719581458961,-1346.02,0.00021917,3]
[330570470,1719581458970,-8319.76,0.00021917,3]
[330570471,1719581458979,-1937.52,0.00021917,3]
[330570472,1719581458987,-564.83,0.00021917,3]
[330570473,1719581458996,-500.0,0.00021917,3]
[330570474,1719581459005,-1314.55,0.00021917,3]
[330570475,1719581459015,-1278.6,0.00021917,3]
[330570476,1719581459024,-500.0,0.00021917,3]
[330570477,1719581459033,-2235.79,0.00021917,3]
[330570478,1719581459043,-500.0,0.00021917,3]
[330570479,1719581459052,-5355.41,0.00021917,3]
[330570480,1719581459060,-500.0,0.00021917,3]
[330570481,1719581459070,-1157.09,0.00021917,3]
[330570482,1719581459079,-1730.25,0.00021917,3]
[330570483,1719581459089,-500.0,0.00021917,3]
[330570484,1719581459098,-2443.33,0.00021917,3]
[330570485,1719581459107,-151.0,0.00021917,2]
[330570486,1719581459116,-151.0,0.00021917,2]
[330570487,1719581459126,-151.0,0.00021917,2]
[330570488,1719581459135,-151.0,0.00021917,2]
[330570489,1719581459146,-151.0,0.00021917,2]
[330570490,1719581459155,-500.0,0.00021917,3]
[330570491,1719581459164,-151.0,0.00021917,2]
[330570492,1719581459173,-151.0,0.00021917,2]
[330570493,1719581459183,-500.0,0.00021917,3]
[330570494,1719581459192,-151.0,0.00021917,2]
[330570495,1719581459201,-500.0,0.00021917,3]
[330570496,1719581459212,-151.0,0.00021917,2]
[330570497,1719581459221,-500.0,0.00021917,3]
[330570498,1719581459232,-151.0,0.00021917,2]
[330570499,1719581459241,-151.0,0.00021917,2]
[330570500,1719581459250,-556.53,0.00021917,3]
[330570501,1719581459260,-500.0,0.00021917,3]
[330570502,1719581459271,-1941.38,0.00021917,3]
[330570503,1719581459283,-2413.29,0.00021917,3]
[330570504,1719581459293,-500.0,0.00021917,3]
[330570505,1719581459302,-693.2,0.00021917,3]
[330570506,1719581459311,-5956.58,0.00021917,3]
[330570507,1719581459321,-500.0,0.00021917,3]
[330570508,1719581459330,-1765.52,0.00021917,3]
[330570509,1719581459339,-500.0,0.00021917,3]
[330570510,1719581459348,-802.57,0.00021917,3]
[330570511,1719581459357,-500.0,0.00021917,3]
[330570512,1719581459366,-151.0,0.00021917,2]
[330570513,1719581459375,-500.0,0.00021917,3]
[330570514,1719581459384,-500.0,0.00021917,3]
[330570515,1719581459393,-151.0,0.00021917,2]
[330570516,1719581459407,-151.0,0.00021917,2]
[330570517,1719581459416,-917.75,0.00021917,3]
[330570518,1719581459425,-500.0,0.00021917,3]
[330570519,1719581459434,-151.0,0.00021917,2]
[330570520,1719581459444,-1339.62,0.00021917,3]
[330570521,1719581459455,-500.0,0.00021917,3]
[330570522,1719581459463,-500.0,0.00021917,3]
[330570523,1719581459472,-500.0,0.00021917,3]
[330570524,1719581459486,-500.0,0.00021917,3]
[330570525,1719581459495,-500.0,0.00021917,3]
[330570526,1719581459504,-500.0,0.00021917,2]
[330570527,1719581459513,-500.0,0.00021917,3]
[330570528,1719581459522,-5728.45,0.00021917,3]
[330570529,1719581459531,-1738.31,0.00021917,3]
[330570530,1719581459541,-1513.95,0.00021917,3]
[330570531,1719581459550,-500.0,0.00021917,3]
[330570532,1719581459559,-1400.67,0.00021917,3]
[330570533,1719581459568,-1314.72,0.00021917,3]
[330570534,1719581459578,-2631.35,0.00021917,3]
[330570535,1719581459587,-250.21340474,0.00021917,3]
[330570536,1719581459596,-1222.24,0.00021917,3]
[330570537,1719581459606,-2245.26,0.00021917,3]
[330570538,1719581459615,-500.0,0.00021917,3]
[330570539,1719581459624,-500.0,0.00021917,3]
[330570540,1719581459634,-151.0,0.00021917,2]
[330570541,1719581459643,-151.0,0.00021917,2]
[330570542,1719581459652,-500.0,0.00021917,3]
[330570543,1719581459661,-500.0,0.00021917,3]
[330570544,1719581459670,-500.0,0.00021917,3]
[330570545,1719581459679,-1528.39,0.00021917,3]
[330570546,1719581459689,-151.0,0.00021917,2]
[330570547,1719581459697,-151.0,0.00021917,2]
[330570548,1719581459708,-151.0,0.00021917,2]
[330570549,1719581459717,-500.0,0.00021917,3]
[330570550,1719581459727,-151.0,0.00021917,2]
[330570551,1719581459736,-500.0,0.00021917,3]
[330570552,1719581459745,-151.0,0.00021917,2]
[330570553,1719581459755,-151.0,0.00021917,2]
[330570554,1719581459764,-500.0,0.00021917,3]
[330570555,1719581459774,-1763.94,0.00021917,3]
[330570556,1719581459783,-500.0,0.00021917,3]
[330570557,1719581459794,-500.0,0.00021917,3]
[330570558,1719581459803,-693.212927,0.00021917,2]
[330570559,1719581459811,-693.212927,0.00021917,2]
[330570560,1719581459820,-800.36,0.00021917,3]
[330570561,1719581459830,-693.212927,0.00021917,2]
[330570562,1719581459839,-693.212927,0.00021917,2]
[330570563,1719581459848,-693.212927,0.00021917,2]
[330570564,1719581459858,-3000.0,0.00021917,2]
[330570565,1719581459868,-693.212927,0.00021917,2]
[330570566,1719581459879,-693.212927,0.00021917,2]
[330570567,1719581459891,-693.212927,0.00021917,2]
[330570568,1719581459901,-500.0,0.00021917,3]
[330570569,1719581459911,-500.0,0.00021917,3]
[330570570,1719581459924,-3244.69,0.00021917,3]
[330570571,1719581459934,-552.11,0.00021917,3]
[330570572,1719581459944,-151.0,0.00021917,2]
[330570573,1719581459956,-693.212927,0.00021917,2]
[330570574,1719581459967,-151.0,0.00021917,2]
[330570575,1719581459976,-693.212927,0.00021917,2]
[330570576,1719581459985,-1921.96,0.00021917,3]
[330570577,1719581459995,-151.0,0.00021917,2]
[330570578,1719581460005,-693.212927,0.00021917,2]
[330570579,1719581460013,-151.0,0.00021917,2]
[330570580,1719581460022,-693.212927,0.00021917,2]
[330570581,1719581460031,-151.0,0.00021917,2]
[330570582,1719581460041,-500.0,0.00021917,3]
[330570583,1719581460050,-1343.31,0.00021917,3]
[330570584,1719581460059,-693.212927,0.00021917,2]
[330570585,1719581460068,-693.212927,0.00021917,2]
[330570586,1719581460080,-151.0,0.00021917,2]
[330570587,1719581460089,-929.24,0.00021917,3]
[330570588,1719581460099,-500.0,0.00021917,3]
[330570589,1719581460108,-693.212927,0.00021917,2]
[330570590,1719581460117,-500.0,0.00021917,3]
[330570591,1719581460126,-151.0,0.00021917,2]
[330570592,1719581460136,-693.212927,0.00021917,2]
[330570593,1719581460145,-500.0,0.00021917,3]
[330570594,1719581460154,-500.0,0.00021917,3]
[330570595,1719581460163,-500.0,0.00021917,3]
[330570596,1719581460173,-500.0,0.00021917,3]
[330570597,1719581460182,-500.0,0.00021917,3]
[330570598,1719581460191,-500.0,0.00021917,3]
[330570599,1719581460199,-649.79,0.00021917,3]
[330570600,1719581460208,-500.0,0.00021917,3]
[330570601,1719581460218,-500.0,0.00021917,3]
[330570602,1719581460227,-500.0,0.00021917,3]
[330570603,1719581460237,-500.0,0.00021917,3]
[330570604,1719581460246,-1120.02,0.00021917,3]
[330570605,1719581460255,-1560.26,0.00021917,3]
[330570606,1719581460264,-579.53467137,0.00021917,3]
[330570607,1719581460273,-598.91,0.00021917,3]
[330570608,1719581460282,-500.0,0.00021917,3]
[330570609,1719581460292,-500.0,0.00021917,3]
[330570610,1719581460301,-5400.35,0.00021917,3]
[330570611,1719581460310,-1200.47,0.00021917,3]
[330570612,1719581460320,-728.32,0.00021917,3]
[330570613,1719581460329,-500.0,0.00021917,3]
[330570614,1719581460338,-500.0,0.00021917,3]
[330570615,1719581460347,-500.0,0.00021917,3]
[330570616,1719581460357,-500.0,0.00021917,3]
[330570617,1719581460366,-998.61,0.00021917,3]
[330570618,1719581460375,-500.0,0.00021917,3]
[330570619,1719581460384,-1334.59,0.00021917,3]
[330570620,1719581460393,-500.0,0.00021917,3]
[330570621,1719581460404,-654.9,0.00021917,3]
[330570622,1719581460417,-151.0,0.00021917,2]
[330570623,1719581460427,-1106.63,0.00021917,3]
[330570624,1719581460436,-151.0,0.00021917,2]
[330570625,1719581460446,-500.0,0.00021917,3]
[330570626,1719581460456,-151.0,0.00021917,2]
[330570627,1719581460465,-1151.1,0.00021917,3]
[330570628,1719581460474,-2113.23,0.00021917,3]
[330570629,1719581460483,-151.0,0.00021917,2]
[330570630,1719581460494,-4276.13,0.00021917,3]
[330570631,1719581460503,-151.0,0.00021917,2]
[330570632,1719581460512,-151.0,0.00021917,2]
[330570633,1719581460522,-151.0,0.00021917,2]
[330570634,1719581460531,-3108.49,0.00021917,3]
[330570635,1719581460541,-500.0,0.00021917,3]
[330570636,1719581460549,-151.0,0.00021917,2]
[330570637,1719581460558,-151.0,0.00021917,2]
[330570638,1719581460567,-151.0,0.00021917,2]
[330570639,1719581460581,-151.0,0.00021917,2]
[330570640,1719581460591,-151.0,0.00021917,2]
[330570641,1719581460600,-539.26,0.00021917,2]
[330570642,1719581460609,-151.0,0.00021917,2]
[330570643,1719581460618,-768.64,0.00021917,3]
[330570644,1719581460628,-151.0,0.00021917,2]
[330570645,1719581460636,-267.67116,0.00021917,2]
[330570646,1719581460646,-500.0,0.00021917,3]
[330570647,1719581460655,-151.0,0.00021917,2]
[330570648,1719581460665,-654.34,0.00021917,3]
[330570649,1719581460674,-151.0,0.00021917,2]
[330570650,1719581460684,-3646.44,0.00021917,3]
[330570651,1719581460693,-2939.82,0.00021917,3]
[330570652,1719581460702,-151.0,0.00021917,2]
[330570653,1719581460710,-151.0,0.00021917,2]
[330570654,1719581460720,-1859.66,0.00021917,3]
[330570655,1719581460730,-500.0,0.00021917,3]
[330570656,1719581460739,-500.0,0.00021917,3]
[330570657,1719581460748,-500.0,0.00021917,3]
[330570658,1719581460757,-9771.66,0.00021917,3]
[330570659,1719581460767,-500.0,0.00021917,3]
[330570660,1719581460776,-500.0,0.00021917,3]
[330570661,1719581460785,-541.59,0.00021917,3]
[330570662,1719581460797,-1364.96,0.00021917,3]
[330570663,1719581460806,-655.09,0.00021917,3]
[330570664,1719581460815,-500.0,0.00021917,3]
[330570665,1719581460824,-1000.0,0.00021917,3]
[330570666,1719581460833,-541.6,0.00021917,3]
[330570667,1719581460843,-1563.36,0.00021917,3]
[330570668,1719581460853,-500.0,0.00021917,3]
[330570669,1719581460862,-2735.37,0.00021917,3]
[330570670,1719581460871,-1103.89,0.00021917,3]
[330570671,1719581460880,-668.34,0.00021917,3]
[330570672,1719581460890,-1059.110327,0.00021917,2]
[330570673,1719581460899,-151.0,0.00021917,2]
[330570674,1719581460908,-1059.110327,0.00021917,2]
[330570675,1719581460917,-151.0,0.00021917,2]
[330570676,1719581460926,-1059.110327,0.00021917,2]
[330570677,1719581460936,-151.0,0.00021917,2]
[330570678,1719581460946,-1059.110327,0.00021917,2]
[330570679,1719581460956,-151.0,0.00021917,2]
[330570680,1719581460965,-1059.110327,0.00021917,2]
[330570681,1719581460980,-151.0,0.00021917,2]
[330570682,1719581460994,-1059.110327,0.00021917,2]
[330570683,1719581461009,-151.0,0.00021917,2]
[330570684,1719581461022,-1059.29,0.00021917,3]
[330570685,1719581461033,-1059.110327,0.00021917,2]
[330570686,1719581461045,-1059.110327,0.00021917,2]
[330570687,1719581461057,-25237.64,0.00021917,3]
[330570688,1719581461070,-636.11,0.00021917,3]
[330570689,1719581461085,-1992.19,0.00021917,3]
[330570690,1719581461099,-504.83,0.00021917,3]
[330570691,1719581461113,-500.0,0.00021917,3]